[Event "14th Poti Open-A 2019"]
[Site "Poti"]
[Date "2019.07.13"]
[Round "1.1"]
[White "Yeritsyan, Hayk"]
[Black "Gabuzyan, Hovhannes"]
[Result "1-0"]
[ECO "A68"]
[WhiteElo "2210"]
[BlackElo "2622"]
[Annotator "RC"]
[PlyCount "107"]
[EventDate "2019.07.13"]
[EventType "swiss"]
[EventCountry "GEO"]
[SourceTitle "playchess.com"]
[Source "ChessBase"]
[SourceQuality "1"]
[TimeControl "40/5400+30:1800+30"]

1. d4 {[%emt 0:00:00]} Nf6 {[%emt 0:00:00]} 2. c4 {[%emt 0:00:00]} c5 {[%emt 0:00:00]} 3. d5 {[%emt 0:00:00]} e6 {[%emt 0:00:01]} 4. Nc3 {[%emt 0:00:13]} exd5 5. cxd5 {[%emt 0:00:16]} d6 {[%emt 0:00:09]} 6. e4 {[%emt 0:00:15]} g6 {[%emt 0:00:16]} 7. f4 {[%emt 0:00:08]} Bg7 {[%emt 0:00:18]} 8. Nf3 {[%emt 0:06:02]} O-O {[%emt 0:00:07]} 9. Be2 {[%emt 0:00:06]} Bg4 {[%emt 0:02:54]} 10. O-O {[%emt 0:00:30]} Bxf3 {[%emt 0:02:03]} 11. Bxf3 {[%emt 0:00:09]} Nbd7 {[%emt 0:00:02]} 12. g4 {[%emt 0:00:22]} Rb8 {[%emt 0:07:15]} 13. g5 {[%emt 0:02:19]} Ne8 {[%emt 0:00:02]} 14. h4 {[%emt 0:00:19]} Nc7 {[%emt 0:06:54]} 15. Kg2 {[%emt 0:06:57]} b5 {[%emt 0:01:23]} 16. h5 {[%emt 0:06:17]} b4 {[%emt 0:06:06]} 17. Ne2 {[%emt 0:00:43]} f6 {[%emt 0:00:05]} 18. gxf6 {[%emt 0:03:23]} Rxf6 {[%emt 0:00:43]} 19. Ng3 {[%emt 0:06:37]} Qe7 {[%emt 0:02:38]} 20. e5 {[%emt 0:14:49]} dxe5 {[%emt 0:00:06]} 21. Ne4 {[%emt 0:00:26]} Rbb6 {[%emt 0:06:00]} 22. Nxf6+ {[%emt 0:02:35]} Rxf6 {[%emt 0:02:35]} 23. fxe5 {[%emt 0:07:04]} Qxe5 {[%emt 0:00:55]} 24. Qe2 {[%emt 0:13:01]} gxh5 {[%emt 0:01:22]} 25. Qxe5 {[%emt 0:00:34]} Nxe5 {[%emt 0:00:02]} 26. Be4 {[%emt 0:01:33]} Ra6 {[%emt 0:14:16]} 27. Be3 {[%emt 0:02:41]} Nd7 {[%emt 0:03:30]} 28. Bf4 {[%emt 0:06:22]} Be5 {[%emt 0:02:22]} 29. Bxe5 {[%emt 0:00:33]} Nxe5 {[%emt 0:00:02]} 30. Kh3 {[%emt 0:01:05]} Nb5 {[%emt 0:04:25]} 31. Rf5 {[%emt 0:00:52]} Ng6 {[%emt 0:00:03]} 32. Bd3 {[%emt 0:00:45]} Nd4 {[%emt 0:00:26]} 33. Bxa6 {[%emt 0:01:07]} Nxf5 {[%emt 0:00:01]} 34. Rf1 {[%emt 0:01:16]} Ne3 {[%emt 0:00:25]} 35. Rf3 {[%emt 0:00:23]} Ng4 {[%emt 0:00:57]} 36. d6 {[%emt 0:00:55]} N4e5 {[%emt 0:00:44]} 37. Rf5 {[%emt 0:00:12]} Kg7 {[%emt 0:02:10]} 38. Bc4 {[%emt 0:01:52]} Nxc4 {[%emt 0:01:14]} 39. d7 {[%emt 0:00:04]} Nd6 {[%emt 0:00:03]} 40. d8=Q {[%emt 0:00:00]} Nxf5 {[%emt 0:00:00]} 41. Qc7+ {[%emt 0:01:04]} Kf6 {[%emt 0:00:22]} 42. Qxc5 {[%emt 0:00:15]} Nf4+ {[%emt 0:00:24]} 43. Kh2 {[%emt 0:00:03]} h4 {[%emt 0:00:05]} 44. Qxa7 {[%emt 0:00:58]} h3 {[%emt 0:00:21]} 45. a4 {[%emt 0:01:02]} bxa3 {[%emt 0:00:06]} 46. bxa3 {[%emt 0:00:05]} h5 {[%emt 0:00:17]} 47. a4 {[%emt 0:02:46]} Nh6 {[%emt 0:00:38]} 48. Kg3 {[%emt 0:00:11]} Ne6 {[%emt 0:02:30]} 49. Kxh3 {[%emt 0:00:14]} Nf5 {[%emt 0:00:09]} 50. a5 {[%emt 0:00:17]} Ng5+ {[%emt 0:00:03]} 51. Kh2 {[%emt 0:00:22]} h4 {[%emt 0:00:06]} 52. Qb7 {[%emt 0:00:22]} Nd4 {[%emt 0:00:14]} 53. a6 {[%emt 0:00:30]} Ndf3+ {[%emt 0:00:05]} 54. Kh1 {[%emt 0:00:05]} 1-0

[Event "14th Poti Open-A 2019"]
[Site "Poti"]
[Date "2019.07.13"]
[Round "1.12"]
[White "Urazayev, Arystanbek"]
[Black "Buniatyan, David"]
[Result "1-0"]
[ECO "B03"]
[WhiteElo "2436"]
[BlackElo "2014"]
[Annotator "RC"]
[PlyCount "79"]
[EventDate "2019.07.13"]
[EventType "swiss"]
[EventCountry "GEO"]
[SourceTitle "playchess.com"]
[Source "ChessBase"]
[SourceQuality "1"]
[TimeControl "40/5400+30:1800+30"]

1. e4 {[%emt 0:00:00]} Nf6 {[%emt 0:00:00]} 2. e5 {[%emt 0:00:00]} Nd5 {[%emt 0:00:12]} 3. c4 {[%emt 0:00:11]} Nb6 {[%emt 0:00:07]} 4. d4 {[%emt 0:00:03]} d6 {[%emt 0:00:15]} 5. exd6 exd6 {[%emt 0:00:14]} 6. h3 {[%emt 0:00:27]} Be7 {[%emt 0:00:43]} 7. Nf3 {[%emt 0:00:15]} Bf5 {[%emt 0:02:02]} 8. Be2 {[%emt 0:00:15]} O-O {[%emt 0:00:41]} 9. O-O {[%emt 0:00:09]} Bf6 {[%emt 0:01:09]} 10. Nc3 {[%emt 0:00:20]} Nc6 {[%emt 0:00:47]} 11. Bf4 {[%emt 0:00:08]} Re8 {[%emt 0:01:21]} 12. Qd2 {[%emt 0:00:31]} d5 {[%emt 0:07:23]} 13. c5 {[%emt 0:02:16]} Nc4 {[%emt 0:00:32]} 14. Bxc4 {[%emt 0:01:09]} dxc4 {[%emt 0:00:07]} 15. d5 {[%emt 0:17:46]} Nb4 {[%emt 0:13:23]} 16. d6 {[%emt 0:04:28]} cxd6 {[%emt 0:05:17]} 17. cxd6 {[%emt 0:01:44]} Qa5 {[%emt 0:08:49]} 18. Bg5 {[%emt 0:09:17]} Bxg5 {[%emt 0:14:48]} 19. Qxg5 {[%emt 0:00:06]} f6 {[%emt 0:03:32]} 20. Qh5 {[%emt 0:09:06]} g6 {[%emt 0:01:24]} 21. Qh4 {[%emt 0:01:25]} Kg7 {[%emt 0:00:25]} 22. a3 {[%emt 0:07:17]} Nc2 {[%emt 0:06:51]} 23. Rac1 {[%emt 0:01:48]} Bd3 {[%emt 0:06:41]} 24. Rfd1 {[%emt 0:01:59]} Rad8 {[%emt 0:01:02]} 25. Rd2 {[%emt 0:03:05]} Qf5 {[%emt 0:05:26]} 26. Qg3 {[%emt 0:03:13]} b5 {[%emt 0:07:22]} 27. Rcxc2 {[%emt 0:04:53]} Bxc2 {[%emt 0:00:16]} 28. Nd4 {[%emt 0:00:08]} Qc5 {[%emt 0:01:05]} 29. Nxc2 {[%emt 0:00:24]} Re5 {[%emt 0:00:59]} 30. Ne3 {[%emt 0:06:26]} Kf7 {[%emt 0:05:15]} 31. Qf3 {[%emt 0:03:08]} Rxd6 {[%emt 0:01:49]} 32. Ne4 {[%emt 0:01:28]} Rxe4 {[%emt 0:02:04]} 33. Rxd6 {[%emt 0:00:09]} f5 {[%emt 0:00:21]} 34. Rd5 {[%emt 0:01:57]} Qe7 {[%emt 0:02:53]} 35. Rxb5 {[%emt 0:01:15]} Kg8 {[%emt 0:00:47]} 36. Qd1 {[%emt 0:00:58]} Kg7 {[%emt 0:00:57]} 37. Rd5 {[%emt 0:02:16]} Kh6 {[%emt 0:00:36]} 38. Qd2 {[%emt 0:00:22]} Kh5 {[%emt 0:00:51]} 39. g4+ {[%emt 0:01:15]} Kh4 {[%emt 0:00:03]} 40. Nxf5+ {[%emt 0:00:00]} 1-0

[Event "14th Poti Open-A 2019"]
[Site "Poti"]
[Date "2019.07.13"]
[Round "1.13"]
[White "Suleymanli, Suleyman"]
[Black "Arabidze, Meri"]
[Result "0-1"]
[ECO "A06"]
[WhiteElo "2007"]
[BlackElo "2402"]
[Annotator "RC"]
[PlyCount "96"]
[EventDate "2019.07.13"]
[EventType "swiss"]
[EventCountry "GEO"]
[SourceTitle "playchess.com"]
[Source "ChessBase"]
[SourceQuality "1"]
[TimeControl "40/5400+30:1800+30"]

1. Nf3 {[%emt 0:00:00]} d5 {[%emt 0:00:15]} 2. g3 {[%emt 0:00:00]} Nf6 {[%emt 0:00:11]} 3. Bg2 {[%emt 0:00:12]} e6 {[%emt 0:00:06]} 4. d4 {[%emt 0:00:21]} b5 {[%emt 0:00:39]} 5. a4 {[%emt 0:01:12]} b4 {[%emt 0:00:29]} 6. c4 {[%emt 0:00:50]} bxc3 {[%emt 0:00:39]} 7. Nxc3 {[%emt 0:00:09]} Be7 {[%emt 0:01:42]} 8. O-O {[%emt 0:00:52]} O-O {[%emt 0:00:28]} 9. Bf4 {[%emt 0:03:30]} c6 {[%emt 0:14:56]} 10. Ne5 {[%emt 0:05:06]} Nfd7 {[%emt 0:01:18]} 11. Nxd7 {[%emt 0:02:53]} Nxd7 {[%emt 0:00:15]} 12. Rc1 {[%emt 0:01:05]} Ba6 {[%emt 0:00:53]} 13. Qd2 {[%emt 0:04:44]} Rc8 {[%emt 0:02:35]} 14. Rfd1 {[%emt 0:02:29]} f5 {[%emt 0:14:03]} 15. Qe3 {[%emt 0:05:40]} Kf7 {[%emt 0:00:26]} 16. h4 {[%emt 0:01:38]} Nf6 {[%emt 0:01:59]} 17. Bh3 {[%emt 0:03:13]} Bd6 {[%emt 0:04:26]} 18. Be5 {[%emt 0:01:23]} Re8 {[%emt 0:04:55]} 19. Nb1 {[%emt 0:05:15]} Ne4 {[%emt 0:05:01]} 20. Nd2 {[%emt 0:02:06]} Bxe5 {[%emt 0:02:49]} 21. dxe5 {[%emt 0:07:31]} Qb6 {[%emt 0:02:20]} 22. Nxe4 {[%emt 0:01:53]} fxe4 {[%emt 0:00:14]} 23. Qxb6 {[%emt 0:00:58]} axb6 {[%emt 0:00:05]} 24. e3 {[%emt 0:00:19]} Bd3 {[%emt 0:16:27]} 25. Bf1 {[%emt 0:04:36]} Bxf1 {[%emt 0:01:04]} 26. Kxf1 {[%emt 0:00:01]} c5 {[%emt 0:02:41]} 27. g4 {[%emt 0:01:15]} Ra8 {[%emt 0:01:12]} 28. b3 {[%emt 0:00:46]} h5 {[%emt 0:01:39]} 29. g5 {[%emt 0:04:09]} Kg6 {[%emt 0:01:22]} 30. Ke2 {[%emt 0:00:42]} Kf5 {[%emt 0:01:48]} 31. Rd2 {[%emt 0:01:00]} Kxe5 {[%emt 0:00:31]} 32. Ra2 {[%emt 0:00:35]} Kd6 {[%emt 0:01:26]} 33. b4 {[%emt 0:01:30]} Ra6 {[%emt 0:04:20]} 34. bxc5+ {[%emt 0:01:24]} bxc5 {[%emt 0:00:04]} 35. Rb1 {[%emt 0:01:08]} Rea8 {[%emt 0:01:43]} 36. Rba1 {[%emt 0:01:25]} Ra5 {[%emt 0:02:40]} 37. Kd2 {[%emt 0:01:06]} Rb8 {[%emt 0:02:11]} 38. Kc3 {[%emt 0:01:02]} e5 {[%emt 0:01:06]} 39. Rb2 {[%emt 0:03:36]} d4+ {[%emt 0:00:57]} 40. Kc2 {[%emt 0:00:00]} Rxb2+ {[%emt 0:00:00]} 41. Kxb2 {[%emt 0:00:11]} c4 {[%emt 0:02:44]} 42. Ka3 {[%emt 0:02:21]} Kc5 {[%emt 0:01:20]} 43. Rb1 {[%emt 0:00:45]} c3 {[%emt 0:05:33]} 44. Rb7 {[%emt 0:00:26]} Kc6 {[%emt 0:00:53]} 45. Rxg7 {[%emt 0:00:10]} Rc5 {[%emt 0:00:40]} 46. Rg8 {[%emt 0:00:16]} Kb7 {[%emt 0:02:13]} 47. Rg7+ {[%emt 0:00:08]} Ka6 {[%emt 0:00:53]} 48. Kb4 {[%emt 0:00:35]} Rc6 {[%emt 0:01:03]} 0-1

[Event "14th Poti Open-A 2019"]
[Site "Poti"]
[Date "2019.07.13"]
[Round "1.15"]
[White "Janiashvili, Mariami"]
[Black "Gharibyan, Mamikon"]
[Result "0-1"]
[ECO "D39"]
[WhiteElo "1993"]
[BlackElo "2350"]
[Annotator "ChessBase"]
[PlyCount "108"]
[EventDate "2019.07.13"]
[EventType "swiss"]
[EventCountry "GEO"]
[SourceTitle "playchess.com"]
[Source "ChessBase"]
[SourceQuality "1"]
[TimeControl "40/5400+30:1800+30"]

1. d4 {[%emt 0:00:00]} Nf6 {[%emt 0:00:00]} 2. c4 {[%emt 0:00:00]} e6 {[%emt 0:00:04]} 3. Nf3 {[%emt 0:00:00]} d5 {[%emt 0:01:51]} 4. Nc3 {[%emt 0:00:12]} Bb4 {[%emt 0:00:30]} 5. Bg5 {[%emt 0:00:30]} dxc4 {[%emt 0:00:30]} 6. e4 {[%emt 0:00:30]} h6 {[%emt 0:00:30]} 7. Bxf6 {[%emt 0:00:30]} Qxf6 {[%emt 0:00:30]} 8. Bxc4 {[%emt 0:00:30]} c5 {[%emt 0:00:30]} 9. O-O {[%emt 0:00:30]} O-O {[%emt 0:00:30]} 10. a3 {[%emt 0:00:30]} Bxc3 {[%emt 0:00:30]} 11. bxc3 {[%emt 0:00:30]} cxd4 {[%emt 0:00:30]} 12. cxd4 {[%emt 0:00:30]} Rd8 {[%emt 0:00:30]} 13. Qe2 {[%emt 0:00:30]} Nc6 {[%emt 0:00:30]} 14. Rad1 {[%emt 0:00:30]} Qe7 {[%emt 0:00:30]} 15. Qe3 {[%emt 0:00:30]} Na5 {[%emt 0:00:30]} 16. Ba2 {[%emt 0:00:30]} Bd7 {[%emt 0:00:30]} 17. Ne5 {[%emt 0:00:30]} Ba4 {[%emt 0:00:30]} 18. Rd2 {[%emt 0:00:30]} Bb5 {[%emt 0:00:30]} 19. Rb1 {[%emt 0:00:30]} Be8 {[%emt 0:00:30]} 20. f4 {[%emt 0:00:30]} f6 {[%emt 0:00:30]} 21. Nf3 {[%emt 0:00:30]} Bf7 {[%emt 0:00:30]} 22. Qc3 {[%emt 0:00:30]} b6 {[%emt 0:00:30]} 23. Rc1 {[%emt 0:00:30]} Qb7 {[%emt 0:00:30]} 24. Qd3 {[%emt 0:00:30]} Rac8 {[%emt 0:00:30]} 25. Rdc2 {[%emt 0:00:30]} Rxc2 {[%emt 0:00:30]} 26. Qxc2 {[%emt 0:00:30]} Qe7 {[%emt 0:00:30]} 27. Qc3 {[%emt 0:00:30]} Nb7 {[%emt 0:00:30]} 28. e5 {[%emt 0:00:30]} f5 {[%emt 0:00:30]} 29. Qb4 {[%emt 0:00:30]} Qd7 {[%emt 0:00:30]} 30. Qc4 {[%emt 0:00:30]} Qe7 {[%emt 0:00:30]} 31. Qb4 {[%emt 0:00:30]} Qe8 {[%emt 0:00:30]} 32. Qc4 {[%emt 0:00:30]} Kh7 {[%emt 0:00:30]} 33. Qc2 {[%emt 0:00:30]} Qe7 {[%emt 0:00:30]} 34. Qc3 {[%emt 0:00:30]} Rd7 {[%emt 0:00:30]} 35. Qb4 {[%emt 0:00:30]} Qe8 {[%emt 0:00:30]} 36. Qb1 {[%emt 0:00:30]} Qe7 {[%emt 0:00:30]} 37. Qb4 {[%emt 0:00:30]} Qe8 {[%emt 0:00:30]} 38. Qb1 {[%emt 0:00:30]} Bh5 {[%emt 0:00:30]} 39. Qb3 {[%emt 0:00:30]} Nd8 {[%emt 0:00:30]} 40. Rc4 {[%emt 0:00:30]} Rd5 {[%emt 0:00:30]} 41. Qc3 {[%emt 0:30:30]} Rd7 {[%emt 0:30:30]} 42. Bb3 {[%emt 0:00:30]} Qf8 {[%emt 0:00:30]} 43. Ba4 {[%emt 0:00:30]} Rd5 {[%emt 0:00:30]} 44. Bd1 {[%emt 0:00:30]} Qe7 {[%emt 0:00:30]} 45. Ng5+ {[%emt 0:00:30]} hxg5 {[%emt 0:00:30]} 46. Qh3 {[%emt 0:00:30]} g6 {[%emt 0:00:30]} 47. Bxh5 {[%emt 0:00:30]} gxh5 {[%emt 0:00:30]} 48. Qxh5+ {[%emt 0:00:30]} Kg7 {[%emt 0:00:30]} 49. Rc3 {[%emt 0:00:30]} Nf7 {[%emt 0:00:30]} 50. fxg5 {[%emt 0:00:30]} Rd8 {[%emt 0:00:30]} 51. h4 {[%emt 0:00:30]} Rxd4 {[%emt 0:00:30]} 52. g3 {[%emt 0:00:30]} Qd8 {[%emt 0:00:30]} 53. Rc1 {[%emt 0:00:30]} Rg4 {[%emt 0:00:30]} 54. g6 {[%emt 0:00:30]} Nh6 {[%emt 0:00:30]} 0-1

[Event "14th Poti Open-A 2019"]
[Site "Poti"]
[Date "2019.07.13"]
[Round "1.16"]
[White "Chkhaidze, Nikoloz"]
[Black "Elashvili, Giorgi"]
[Result "1-0"]
[ECO "D39"]
[WhiteElo "2330"]
[BlackElo "1978"]
[Annotator "ChessBase"]
[PlyCount "63"]
[EventDate "2019.07.13"]
[EventType "swiss"]
[EventCountry "GEO"]
[SourceTitle "playchess.com"]
[Source "ChessBase"]
[SourceQuality "1"]
[TimeControl "40/5400+30:1800+30"]

1. d4 {[%emt 0:00:00]} Nf6 {[%emt 0:00:00]} 2. c4 {[%emt 0:00:00]} e6 {[%emt 0:00:00]} 3. Nc3 {[%emt 0:00:00]} d5 {[%emt 0:00:03]} 4. Nf3 {[%emt 0:00:00]} Bb4 {[%emt 0:00:09]} 5. Bg5 {[%emt 0:03:03]} dxc4 {[%emt 0:01:54]} 6. e4 {[%emt 0:01:04]} c5 {[%emt 0:00:12]} 7. e5 {[%emt 0:01:23]} cxd4 {[%emt 0:01:01]} 8. Nxd4 {[%emt 0:00:55]} Bxc3+ {[%emt 0:05:11]} 9. bxc3 {[%emt 0:00:08]} Qa5 {[%emt 0:00:07]} 10. exf6 {[%emt 0:09:17]} Qxg5 {[%emt 0:00:24]} 11. fxg7 {[%emt 0:00:04]} Qxg7 {[%emt 0:00:20]} 12. Qd2 {[%emt 0:03:14]} O-O {[%emt 0:16:42]} 13. Bxc4 {[%emt 0:01:59]} Rd8 {[%emt 0:12:12]} 14. Qe3 {[%emt 0:02:19]} Nd7 {[%emt 0:12:51]} 15. O-O {[%emt 0:04:47]} Nb6 {[%emt 0:06:23]} 16. Bb3 {[%emt 0:07:17]} Nd5 {[%emt 0:06:41]} 17. Bxd5 {[%emt 0:06:00]} Rxd5 {[%emt 0:00:19]} 18. f4 {[%emt 0:00:20]} Bd7 {[%emt 0:21:09]} 19. Rf3 {[%emt 0:06:50]} Kh8 {[%emt 0:02:36]} 20. f5 {[%emt 0:07:07]} e5 {[%emt 0:11:02]} 21. f6 {[%emt 0:03:12]} Qg6 {[%emt 0:00:29]} 22. Ne2 {[%emt 0:00:19]} Bb5 {[%emt 0:00:43]} 23. Ng3 {[%emt 0:13:50]} Re8 {[%emt 0:00:26]} 24. Re1 {[%emt 0:05:30]} Rd3 {[%emt 0:00:30]} 25. Qc5 {[%emt 0:01:48]} Bc6 {[%emt 0:00:32]} 26. Rxd3 {[%emt 0:02:20]} Qxd3 {[%emt 0:00:07]} 27. Rxe5 {[%emt 0:01:48]} Qd1+ {[%emt 0:00:42]} 28. Nf1 {[%emt 0:00:21]} Rd8 {[%emt 0:00:39]} 29. Qe3 {[%emt 0:04:24]} Rg8 {[%emt 0:00:30]} 30. Rg5 {[%emt 0:03:29]} Re8 {[%emt 0:00:26]} 31. Qg3 {[%emt 0:00:53]} Be4 {[%emt 0:00:37]} 32. Rd5 {[%emt 0:00:56]} 1-0

[Event "14th Poti Open-A 2019"]
[Site "Poti"]
[Date "2019.07.13"]
[Round "1.17"]
[White "Manukyan, Aleks"]
[Black "Kucher, Kostyantyn"]
[Result "1-0"]
[ECO "A36"]
[WhiteElo "2097"]
[BlackElo "1724"]
[Annotator "NA"]
[PlyCount "91"]
[EventDate "2019.07.13"]
[EventType "swiss"]
[EventCountry "GEO"]
[SourceTitle "playchess.com"]
[Source "ChessBase"]
[SourceQuality "1"]
[TimeControl "40/5400+30:1800+30"]

1. c4 {[%emt 0:00:00]} c5 {[%emt 0:00:00]} 2. Nc3 {[%emt 0:00:00]} Nc6 {[%emt 0:00:00]} 3. g3 {[%emt 0:00:00]} g6 {[%emt 0:00:05]} 4. Bg2 {[%emt 0:00:00]} Bg7 {[%emt 0:00:08]} 5. d3 {[%emt 0:00:00]} e5 {[%emt 0:00:35]} 6. h4 {[%emt 0:00:12]} h6 {[%emt 0:00:25]} 7. e3 {[%emt 0:01:27]} Nge7 {[%emt 0:00:27]} 8. Nge2 {[%emt 0:00:17]} O-O {[%emt 0:00:41]} 9. a3 {[%emt 0:00:31]} d6 {[%emt 0:00:46]} 10. Nd5 {[%emt 0:00:34]} Nxd5 {[%emt 0:01:42]} 11. cxd5 {[%emt 0:00:23]} Ne7 {[%emt 0:00:28]} 12. Nc3 {[%emt 0:00:30]} f5 {[%emt 0:01:22]} 13. O-O {[%emt 0:00:07]} Qe8 {[%emt 0:01:57]} 14. b4 {[%emt 0:01:53]} cxb4 {[%emt 0:00:39]} 15. axb4 {[%emt 0:00:12]} g5 {[%emt 0:00:54]} 16. hxg5 {[%emt 0:01:44]} hxg5 {[%emt 0:00:06]} 17. Bd2 {[%emt 0:02:37]} f4 {[%emt 0:06:42]} 18. g4 {[%emt 0:14:04]} Ng6 {[%emt 0:04:17]} 19. Be4 {[%emt 0:01:23]} Bd7 {[%emt 0:02:56]} 20. f3 {[%emt 0:01:59]} Rf6 {[%emt 0:09:37]} 21. Ra2 {[%emt 0:02:03]} Kf7 {[%emt 0:03:20]} 22. Qa1 {[%emt 0:03:37]} fxe3 {[%emt 0:06:17]} 23. Bxe3 {[%emt 0:03:24]} Nf4 {[%emt 0:01:06]} 24. Rh2 {[%emt 0:12:55]} Qc8 {[%emt 0:09:30]} 25. Rc1 {[%emt 0:03:13]} Qf8 {[%emt 0:02:39]} 26. Ne2 {[%emt 0:03:29]} Rh6 {[%emt 0:04:03]} 27. Rxh6 {[%emt 0:21:51]} Nxe2+ {[%emt 0:01:04]} 28. Kf2 {[%emt 0:00:24]} Nxc1 {[%emt 0:00:27]} 29. Rh7 {[%emt 0:01:28]} Nb3 {[%emt 0:01:10]} 30. Qh1 {[%emt 0:01:25]} Ke8 {[%emt 0:13:51]} 31. Qh5+ {[%emt 0:02:39]} Kd8 {[%emt 0:00:15]} 32. Qg6 {[%emt 0:02:28]} Bf6 {[%emt 0:02:08]} 33. Rf7 {[%emt 0:00:45]} Qh8 {[%emt 0:00:25]} 34. Qxf6+ {[%emt 0:01:13]} Qxf6 {[%emt 0:00:33]} 35. Rxf6 {[%emt 0:00:06]} Kc7 {[%emt 0:00:35]} 36. Rf7 {[%emt 0:01:26]} Nd4 {[%emt 0:00:55]} 37. Bxd4 {[%emt 0:01:43]} exd4 {[%emt 0:00:07]} 38. Bf5 {[%emt 0:00:03]} Rd8 {[%emt 0:00:46]} 39. f4 {[%emt 0:00:13]} gxf4 {[%emt 0:01:18]} 40. g5 {[%emt 0:00:45]} Kc8 {[%emt 0:00:24]} 41. Rxd7 {[%emt 0:31:07]} Rxd7 {[%emt 0:30:22]} 42. g6 {[%emt 0:00:06]} Kd8 {[%emt 0:00:04]} 43. Bxd7 {[%emt 0:00:06]} Ke7 {[%emt 0:00:15]} 44. Kf3 {[%emt 0:00:16]} Kf6 {[%emt 0:00:16]} 45. Be8 {[%emt 0:00:10]} a6 {[%emt 0:00:12]} 46. Kxf4 {[%emt 0:00:05]} 1-0

[Event "14th Poti Open-A 2019"]
[Site "Poti"]
[Date "2019.07.13"]
[Round "1.18"]
[White "Abgaryan, Harutyun V."]
[Black "Mesropian, Khachatur"]
[Result "0-1"]
[ECO "D85"]
[WhiteElo "1717"]
[BlackElo "2094"]
[Annotator "NA"]
[PlyCount "176"]
[EventDate "2019.07.13"]
[EventType "swiss"]
[EventCountry "GEO"]
[SourceTitle "playchess.com"]
[Source "ChessBase"]
[SourceQuality "1"]
[TimeControl "40/5400+30:1800+30"]

1. d4 {[%emt 0:00:00]} Nf6 {[%emt 0:00:00]} 2. c4 {[%emt 0:00:00]} g6 {[%emt 0:00:00]} 3. Nc3 {[%emt 0:00:00]} d5 {[%emt 0:00:00]} 4. cxd5 Nxd5 {[%emt 0:00:00]} 5. Bd2 {[%emt 0:00:00]} Nb6 {[%emt 0:00:09]} 6. Nf3 {[%emt 0:02:28]} Bg7 {[%emt 0:00:12]} 7. Bf4 {[%emt 0:00:55]} O-O {[%emt 0:01:38]} 8. e3 {[%emt 0:02:00]} Nc6 {[%emt 0:03:38]} 9. Be2 {[%emt 0:03:45]} Be6 {[%emt 0:05:55]} 10. O-O {[%emt 0:03:28]} Bc4 {[%emt 0:06:31]} 11. Bxc4 {[%emt 0:00:33]} Nxc4 {[%emt 0:00:02]} 12. Qe2 {[%emt 0:00:07]} Nb6 {[%emt 0:05:58]} 13. Rfd1 {[%emt 0:00:31]} e6 {[%emt 0:02:25]} 14. Bg3 {[%emt 0:01:30]} Qe7 {[%emt 0:02:10]} 15. Rac1 {[%emt 0:02:08]} Rfd8 {[%emt 0:02:30]} 16. e4 {[%emt 0:14:17]} Nxd4 {[%emt 0:08:53]} 17. Nxd4 {[%emt 0:00:29]} Rxd4 {[%emt 0:00:03]} 18. Rxd4 {[%emt 0:00:40]} Bxd4 {[%emt 0:00:02]} 19. Nb5 {[%emt 0:00:19]} c5 {[%emt 0:03:36]} 20. Bd6 {[%emt 0:02:33]} Qg5 {[%emt 0:01:05]} 21. Rc2 {[%emt 0:01:33]} Rd8 {[%emt 0:05:08]} 22. e5 {[%emt 0:03:32]} Nd5 {[%emt 0:09:21]} 23. Qe4 {[%emt 0:02:50]} Qf4 {[%emt 0:12:48]} 24. Qxf4 {[%emt 0:04:37]} Nxf4 {[%emt 0:00:02]} 25. Nxd4 {[%emt 0:00:56]} cxd4 {[%emt 0:00:09]} 26. g3 {[%emt 0:00:52]} Nd5 {[%emt 0:07:20]} 27. Rd2 {[%emt 0:02:55]} Rc8 {[%emt 0:01:23]} 28. Rxd4 {[%emt 0:00:02]} Rc2 {[%emt 0:00:44]} 29. Ra4 {[%emt 0:04:16]} a6 {[%emt 0:00:45]} 30. b3 {[%emt 0:00:36]} Kg7 {[%emt 0:01:02]} 31. a3 {[%emt 0:03:11]} g5 {[%emt 0:01:37]} 32. Rc4 {[%emt 0:00:56]} Rxc4 {[%emt 0:00:10]} 33. bxc4 {[%emt 0:00:01]} Nb6 {[%emt 0:00:13]} 34. c5 {[%emt 0:00:18]} Nd5 {[%emt 0:02:45]} 35. Kf1 {[%emt 0:01:03]} Kg6 {[%emt 0:01:23]} 36. g4 {[%emt 0:00:59]} h5 {[%emt 0:00:26]} 37. h3 {[%emt 0:00:09]} Nf4 {[%emt 0:00:16]} 38. f3 {[%emt 0:01:34]} Nxh3 {[%emt 0:00:15]} 39. Kg2 {[%emt 0:01:44]} Nf4+ {[%emt 0:00:52]} 40. Kh2 {[%emt 0:01:39]} Nd5 {[%emt 0:01:29]} 41. Kh3 {[%emt 0:30:27]} Ne3 {[%emt 0:30:26]} 42. Kg3 {[%emt 0:00:29]} Nc4 {[%emt 0:00:25]} 43. Kh3 {[%emt 0:01:28]} hxg4+ {[%emt 0:00:36]} 44. fxg4 {[%emt 0:00:44]} f6 {[%emt 0:00:25]} 45. Kg3 {[%emt 0:01:19]} fxe5 {[%emt 0:00:16]} 46. Kf3 {[%emt 0:00:22]} Kf6 {[%emt 0:00:12]} 47. Bf8 {[%emt 0:02:03]} Nd2+ {[%emt 0:07:26]} 48. Ke3 {[%emt 0:00:28]} Nc4+ {[%emt 0:01:37]} 49. Ke4 {[%emt 0:01:07]} Na5 {[%emt 0:01:41]} 50. Bd6 {[%emt 0:00:53]} Nc6 {[%emt 0:00:02]} 51. a4 {[%emt 0:00:37]} a5 {[%emt 0:02:09]} 52. Bf8 {[%emt 0:01:12]} Kf7 {[%emt 0:02:07]} 53. Bh6 {[%emt 0:00:48]} Kf6 {[%emt 0:00:52]} 54. Bf8 {[%emt 0:00:08]} Nb8 {[%emt 0:00:49]} 55. Bd6 {[%emt 0:02:51]} Nd7 {[%emt 0:00:01]} 56. Ke3 {[%emt 0:00:17]} Kf7 {[%emt 0:00:15]} 57. Kf3 {[%emt 0:00:41]} Kg6 {[%emt 0:02:45]} 58. Ke3 {[%emt 0:02:10]} Nf6 {[%emt 0:00:38]} 59. Kf3 {[%emt 0:00:52]} e4+ {[%emt 0:00:02]} 60. Ke3 {[%emt 0:00:31]} Kf7 {[%emt 0:00:44]} 61. Bg3 {[%emt 0:01:14]} Ke7 {[%emt 0:00:34]} 62. Be1 {[%emt 0:00:26]} Nxg4+ {[%emt 0:01:06]} 63. Kxe4 {[%emt 0:00:01]} Nf6+ {[%emt 0:00:27]} 64. Ke3 {[%emt 0:00:59]} e5 {[%emt 0:00:28]} 65. Bxa5 {[%emt 0:00:14]} Ke6 {[%emt 0:00:01]} 66. Bd8 {[%emt 0:00:33]} Nd5+ {[%emt 0:00:26]} 67. Ke4 {[%emt 0:00:33]} Nc3+ {[%emt 0:00:28]} 68. Kd3 {[%emt 0:01:01]} Nxa4 {[%emt 0:00:02]} 69. Bxg5 {[%emt 0:00:05]} Nxc5+ {[%emt 0:00:08]} 70. Kc4 {[%emt 0:00:05]} Ne4 {[%emt 0:00:24]} 71. Be3 {[%emt 0:00:05]} Kd6 {[%emt 0:00:32]} 72. Kb5 {[%emt 0:00:13]} Nc3+ {[%emt 0:00:15]} 73. Kc4 {[%emt 0:00:45]} Nd5 {[%emt 0:00:11]} 74. Bg1 {[%emt 0:01:00]} e4 {[%emt 0:01:14]} 75. Kb5 b6 {[%emt 0:01:25]} 76. Bd4 Kc7 77. Be5+ {[%emt 0:04:15]} Kb7 {[%emt 0:00:32]} 78. Bd4 {[%emt 0:00:33]} e3 {[%emt 0:00:17]} 79. Kc4 {[%emt 0:00:22]} Kc6 {[%emt 0:00:15]} 80. Kd3 {[%emt 0:00:45]} Kb5 {[%emt 0:00:38]} 81. Ke2 {[%emt 0:00:53]} Ka5 {[%emt 0:01:01]} 82. Kd3 {[%emt 0:01:45]} b5 {[%emt 0:02:06]} 83. Ke4 {[%emt 0:00:58]} b4 {[%emt 0:00:41]} 84. Kd3 {[%emt 0:02:08]} Ka4 {[%emt 0:00:26]} 85. Kc2 {[%emt 0:01:29]} b3+ {[%emt 0:00:17]} 86. Kd3 {[%emt 0:01:46]} Ka3 {[%emt 0:00:30]} 87. Bc5+ {[%emt 0:00:34]} Ka2 {[%emt 0:00:18]} 88. Bd4 {[%emt 0:00:19]} b2 0-1